bitfinex/quotes_SOLUSD_20241021
["timestamp","ask_amount","ask_price","bid_price","bid_amount"]
[1729520420015,67.90583342,164.01,164.0,33.6921904]
[1729520420733,83.08723342,164.01,164.0,9.9221904]
[1729520421732,6.1003,163.93,163.91,0.6051128]
[1729520422517,23.776884,163.97,163.91,0.6051128]
[1729520422718,29.877384,163.92,163.91,0.6051128]
[1729520423030,23.776884,163.94,163.91,0.6051128]
[1729520423240,29.876684,163.94,163.91,0.6051128]
[1729520423426,30.0,163.92,163.91,6.7060128]
[1729520423620,6.0983,163.98,163.92,6.1005]
[1729520423827,6.2231,164.02,163.91,0.6051128]
[1729520424029,24.26524942,164.05,163.91,0.6051128]
[1729520424229,24.26524942,164.05,163.98,6.0979]
[1729520424424,6.0965,164.03,163.98,6.0979]
[1729520424935,16.2334,164.05,163.98,6.0979]
[1729520425139,6.0968,164.02,163.98,6.0979]
[1729520425441,6.0968,164.02,163.97,15.2462]
[1729520425442,6.0968,164.02,163.97,21.3447]
[1729520425642,8.03184942,164.04,163.92,21.7785]
[1729520425819,12.1241534,164.09,163.99,15.2444]
[1729520426015,6.0971,164.02,163.96,6.0987]
[1729520426636,6.0972,164.01,163.96,6.0987]
[1729520426818,6.0978,164.0,163.94,21.3489]
[1729520427017,23.776884,163.99,163.94,21.3489]
[1729520427320,8.03184942,164.01,163.92,21.6785]
[1729520427533,8.03184942,164.08,163.93,20.0]
[1729520427744,6.0961,164.04,163.93,20.0]
[1729520428045,14.12794942,164.04,163.98,6.0979]
[1729520428524,8.03184942,164.04,163.97,15.2459]
[1729520428839,8.03184942,164.03,163.95,6.0992]
[1729520429219,29.873884,164.02,163.92,21.6785]
[1729520429439,15.2377,164.07,163.92,21.6785]
[1729520429440,23.776884,164.03,163.92,21.6785]
[1729520429629,23.776884,164.03,163.99,6.0976]
[1729520430525,29.873284,164.03,163.99,6.0976]
[1729520431446,29.873284,164.03,163.98,21.3433]
[1729520432625,37.90513342,164.03,163.98,21.3433]
[1729520433325,29.873284,164.03,163.98,21.3433]
[1729520434244,29.873284,164.03,163.99,6.0979]
[1729520434924,37.90513342,164.03,163.99,6.0979]
[1729520435440,31.80873342,164.03,163.99,6.0976]
[1729520435633,33.05332135,164.1,163.97,21.5185]
[1729520435634,6.36432737,164.1,163.97,21.5185]
[1729520435834,22.25723408,164.14,163.99,6.0979]
[1729520435835,6.0946,164.08,163.99,6.0979]
[1729520436037,36.5287,164.14,164.02,6.0965]
[1729520436038,6.0949,164.07,164.02,6.0965]
[1729520436236,6.0949,164.08,163.98,20.0]
[1729520436753,21.197,164.14,163.98,20.2]
[1729520436944,1.16013908,164.18,164.05,22.3404]
[1729520436945,6.0011,164.18,164.05,22.3404]
[1729520437120,6.0011,164.18,164.11,6.0934]
[1729520437447,6.0916,164.16,164.11,6.0934]
[1729520437747,6.093,164.13,164.09,15.2348]
[1729520438249,7.71827324,164.13,164.01,21.9982]
[1729520438421,6.0946,164.08,164.03,6.0963]
[1729520438827,30.0,164.11,164.03,15.241]
[1729520439040,6.0942,164.09,164.04,6.0959]
[1729520439822,36.0934,164.11,164.06,6.0953]
[1729520440024,6.0938,164.1,164.02,6.0968]
[1729520440239,6.0945,164.09,164.04,15.2399]
[1729520440449,6.0945,164.09,164.04,21.3359]
[1729520443234,6.095,164.07,164.02,6.0964]
[1729520443543,6.0957,164.05,164.01,43.3377]
[1729520443852,6.0954,164.06,164.01,43.3377]
[1729520445939,7.71827324,164.09,163.98,15.2454]
[1729520446149,6.0945,164.08,164.0,6.0974]
[1729520446361,6.0957,164.05,164.0,6.0974]
[1729520447234,6.0961,164.04,164.0,6.0974]
[1729520447549,30.0,164.03,163.97,22.1768]
[1729520447739,37.71827324,164.03,163.93,22.4686]
[1729520448430,37.71827324,164.03,163.99,6.0976]
[1729520449232,36.0967,164.03,163.99,6.0978]
[1729520449844,6.0971,164.02,163.98,15.2455]
[1729520450156,6.0972,164.01,163.98,15.2455]
[1729520451252,36.0967,164.03,163.99,6.0979]
[1729520451454,30.0,164.03,163.94,20.0]
[1729520451660,30.0,164.03,164.0,6.0972]
[1729520451948,30.0,164.03,163.94,20.0]
[1729520451949,30.0,164.01,163.98,6.098]
[1729520452252,6.0985,163.98,163.93,28.5687]
[1729520452456,30.0,164.01,163.93,22.4686]
[1729520452862,30.0,164.01,163.94,6.0997]
[1729520453077,30.0,164.01,163.93,15.2503]
[1729520453078,6.0987,163.97,163.93,15.2503]
[1729520453363,7.71827324,164.0,163.91,0.6051128]
[1729520453660,6.0997,163.95,163.91,0.6051128]
[1729520453860,30.0,163.96,163.91,0.6051128]
[1729520454068,6.0994,163.95,163.91,0.6051128]
[1729520455363,30.0,163.96,163.91,0.6051128]
[1729520455666,30.0,163.96,163.94,15.2493]
[1729520455864,30.0,163.96,163.95,6.0994]
[1729520456560,6.0971,164.02,163.97,6.0985]
[1729520456760,30.0,163.98,163.97,6.0985]
[1729520457065,30.0,163.98,163.96,6.099]
[1729520457568,6.0974,164.01,163.96,6.099]
[1729520457749,6.096,164.04,163.98,6.0982]
[1729520457955,6.096,164.04,163.99,6.0978]
[1729520458155,6.0971,164.02,163.98,15.2455]
[1729520459062,16.2165,164.07,163.98,15.2455]
[1729520459267,6.096,164.05,163.99,6.0976]
[1729520459572,6.0949,164.08,164.02,6.0965]
[1729520459749,30.0,164.03,164.02,6.0968]
[1729520460769,23.93477324,164.11,163.97,21.6803]
[1729520460770,7.71827324,164.11,163.97,21.6803]
[1729520460963,12.87328511,164.12,164.04,15.2401]
[1729520461150,6.512,164.12,164.04,21.336]
[1729520461346,6.0955,164.06,164.0,15.2429]
[1729520461547,6.0955,164.06,164.0,21.3401]
[1729520461746,13.81377324,164.06,164.0,21.3401]
[1729520461946,6.0959,164.05,164.0,21.3401]
[1729520462353,7.71827324,164.06,164.02,6.0966]
[1729520462564,6.0944,164.09,163.98,20.0]
[1729520462868,6.0944,164.09,164.01,6.0971]
[1729520463166,6.0934,164.12,164.03,6.0964]
[1729520463365,15.2312,164.14,164.03,6.0964]
[1729520463366,6.0934,164.11,164.03,6.0964]
[1729520463606,6.0938,164.1,164.02,6.0968]
[1729520463946,6.0934,164.11,164.02,15.2418]
[1729520464270,6.0934,164.11,164.02,21.3382]
[1729520465560,6.0938,164.1,164.02,21.3382]
[1729520466074,29.1967066,164.15,163.99,23.876884]
[1729520466075,6.095,164.07,163.99,6.0979]
[1729520466257,6.0958,164.05,163.97,27.7788]
[1729520466457,6.0965,164.03,163.97,21.6803]
[1729520466653,7.57976958,164.1,163.97,21.6803]
[1729520466852,6.6097,164.08,163.97,21.6803]
[1729520467054,15.2383,164.06,163.97,21.6803]
[1729520467259,22.60576958,164.07,163.97,21.6803]
[1729520468072,30.0,164.02,163.97,21.6803]
[1729520469195,6.0968,164.03,163.97,21.6803]
[1729520469380,22.60576958,164.07,163.97,21.6803]
[1729520469684,6.0967,164.03,163.97,21.6803]
[1729520470178,6.0967,164.03,163.97,21.1803]
[1729520470575,30.2639,164.07,163.97,21.1803]
[1729520470576,6.0968,164.02,163.97,21.1803]
[1729520470760,6.1001,163.94,163.92,6.6443]
[1729520470964,15.2451,163.99,163.92,6.6443]
[1729520471180,7.57976958,163.99,163.91,0.6051128]
[1729520471380,6.1002,163.93,163.91,0.6051128]
[1729520471567,6.1005,163.92,163.91,0.6051128]
[1729520471969,6.1002,163.93,163.91,0.6051128]
[1729520472678,15.2466,163.97,163.91,0.6051128]
[1729520472679,6.1005,163.92,163.91,0.6051128]
[1729520473473,36.1005,163.92,163.91,0.6051128]
[1729520474985,6.1005,163.92,163.91,0.6051128]
[1729520476468,36.1005,163.92,163.91,0.6051128]
[1729520477392,59.877384,163.92,163.91,0.6051128]
[1729520478576,36.1005,163.92,163.91,0.6051128]
[1729520479281,6.1005,163.92,163.91,0.6051128]
[1729520479669,15.2466,163.97,163.91,0.6051128]
[1729520479870,6.1005,163.92,163.91,0.6051128]
[1729520480587,36.1005,163.92,163.91,0.6051128]
[1729520480805,59.877384,163.92,163.91,0.6051128]
[1729520482201,36.1005,163.92,163.91,0.6051128]
[1729520482402,6.1005,163.92,163.91,0.6051128]
[1729520483383,29.877384,163.92,163.91,0.6051128]
[1729520484909,83.237784,163.92,163.91,1.28e-05]
[1729520485083,6.105,163.8,163.79,16.0894]
[1729520485507,15.2589,163.84,163.78,6.0315]
[1729520485805,6.1043,163.82,163.78,6.0315]
[1729520486285,6.1046,163.81,163.78,6.0315]
[1729520488997,23.776884,163.86,163.78,6.0315]
[1729520489198,23.776884,163.86,163.78,21.2958]
[1729520489609,6.104,163.83,163.78,27.4014]
[1729520490117,6.1045,163.82,163.78,6.0315]
[1729520490417,6.1046,163.81,163.78,6.0315]
[1729520490791,6.1049,163.81,163.78,6.0315]
[1729520491104,6.105,163.8,163.75,37.6030128]
[1729520491711,6.1046,163.81,163.76,6.1064]
[1729520493503,15.2578,163.85,163.75,31.4963128]
[1729520493504,6.1051,163.8,163.75,21.59732189]
[1729520493911,23.776884,163.84,163.76,15.2655]
[1729520494101,23.776884,163.84,163.77,6.1058]
[1729520494423,6.1043,163.82,163.77,6.1058]
[1729520494898,23.776884,163.84,163.75,0.22352189]
[1729520495097,6.1029,163.86,163.75,20.32352189]
[1729520495308,6.1029,163.86,163.81,6.1043]
[1729520495508,6.1031,163.85,163.8,6.1048]
[1729520496925,6.34391257,163.89,163.76,0.1]
[1729520497100,6.1023,163.88,163.83,6.1038]
[1729520497301,60.69585829,163.92,163.7,3.91514168]
[1729520497302,46.6165,163.92,163.81,15.2948]
[1729520497518,6.1016,163.9,163.84,6.1033]
[1729520498320,46.6165,163.92,163.83,15.2597]
[1729520498520,15.2522,163.91,163.81,15.2948]
[1729520498722,6.1037,163.84,163.78,6.1057]
[1729520498895,6.1036,163.84,163.78,6.1054]
[1729520499227,15.2556,163.88,163.79,6.1052]
[1729520499398,6.1032,163.85,163.79,6.1052]
[1729520499593,15.2556,163.88,163.78,21.3699]
[1729520499804,6.1037,163.84,163.79,6.1052]
[1729520500305,6.102,163.88,163.83,6.1035]
[1729520500629,6.1012,163.9,163.84,6.1034]
[1729520500922,30.0,163.92,163.8,0.1]
[1729520501104,30.0,163.92,163.89,6.1013]
[1729520501307,30.0,163.9,163.89,6.1013]
[1729520501798,30.0,163.9,163.86,6.1024]
[1729520501997,6.2009,163.91,163.87,6.1023]
[1729520502325,6.2017,163.89,163.84,6.1034]
[1729520502625,6.202,163.88,163.84,6.1034]
[1729520502800,6.102,163.88,163.84,6.1034]
[1729520502999,0.1,163.89,163.84,6.1034]
[1729520503501,6.1015,163.9,163.78,0.1]
[1729520503502,6.2015,163.9,163.85,6.1029]
[1729520504220,0.1,163.89,163.85,6.1029]
[1729520504808,9.30800935,163.91,163.8,22.2516]
[1729520505008,9.30800935,163.91,163.85,6.103]
[1729520505009,6.2013,163.9,163.85,6.103]
[1729520505216,0.1,163.89,163.85,6.103]
[1729520505795,9.20800935,163.91,163.8,22.2516]
[1729520505796,9.30800935,163.91,163.86,6.1025]
[1729520506000,6.1001,163.93,163.88,6.1017]
[1729520506200,6.2001,163.93,163.88,6.1017]
[1729520506900,6.1005,163.92,163.88,6.1017]
[1729520507615,0.1,163.93,163.88,6.1017]
[1729520507916,0.1,163.92,163.89,6.1015]
[1729520508432,6.1002,163.93,163.89,6.1015]
[1729520508727,6.1999,163.94,163.9,6.1012]
[1729520508927,30.0,163.91,163.9,6.1012]
[1729520509321,6.1998,163.94,163.9,6.1012]
[1729520509524,6.1998,163.94,163.89,21.3553]
[1729520509709,0.1,163.95,163.89,15.2538]
[1729520509913,6.1995,163.95,163.9,6.1011]
[1729520510643,6.32956188,163.96,163.85,43.876884]
[1729520510926,6.32956188,163.96,163.84,22.283]
[1729520510927,0.1,163.97,163.93,6.0998]
[1729520511301,6.0986,163.98,163.93,6.0998]
[1729520511302,6.1986,163.98,163.93,6.0998]
[1729520511506,6.1986,163.98,163.86,0.1]
[1729520511507,6.0986,163.98,163.86,0.1]
[1729520511840,6.1978,164.0,163.95,6.0991]
[1729520512510,0.1,163.99,163.95,6.0991]
[1729520512706,6.0978,164.0,163.95,6.0991]
[1729520512907,21.5962,164.01,163.91,20.0]
[1729520513107,6.1981,163.99,163.95,6.0993]
[1729520513343,0.1,163.99,163.89,21.4832]
[1729520513502,6.0987,163.97,163.92,15.251]
[1729520514010,6.0983,163.98,163.93,6.1]
[1729520514231,6.1983,163.98,163.93,6.1]
[1729520514429,6.1983,163.98,163.92,15.251]
[1729520514430,0.1,163.97,163.92,15.251]
[1729520514614,6.0995,163.95,163.91,6.1008]
[1729520514925,0.1,163.96,163.91,6.1008]
[1729520515131,6.1993,163.96,163.91,6.1008]
[1729520515334,6.0997,163.95,163.9,21.3543]
[1729520515832,6.1991,163.96,163.91,6.1007]
[1729520516626,15.3987,164.01,163.89,21.4832]
[1729520516927,6.0975,164.0,163.9,20.0]
[1729520517232,0.1,163.98,163.92,15.2511]
[1729520517409,6.0987,163.97,163.93,6.1001]
[1729520517609,6.0987,163.97,163.92,21.3513]
[1729520517809,6.0992,163.96,163.92,15.2511]
[1729520518510,6.0992,163.96,163.92,21.3515]
[1729520518712,0.1,163.97,163.92,21.3515]
[1729520518932,6.1987,163.97,163.92,21.3515]
[1729520519732,23.776884,163.96,163.92,21.3515]
[1729520520649,23.776884,163.96,163.93,6.1]
[1729520521227,23.876884,163.96,163.92,15.2511]
[1729520521550,23.776884,163.96,163.91,15.2519]
[1729520521727,23.776884,163.94,163.91,21.3525]
[1729520521930,23.876884,163.94,163.85,22.5606]
[1729520522144,0.1,163.91,163.85,22.5606]
[1729520522344,6.1015,163.9,163.86,6.1026]
[1729520522536,23.776884,163.9,163.86,6.1026]
[1729520523225,23.876884,163.91,163.87,6.1022]
[1729520524649,23.776884,163.91,163.87,6.1022]
[1729520524851,0.1,163.94,163.82,20.0]
[1729520525147,0.1,163.94,163.82,20.1]
[1729520525334,6.1999,163.94,163.89,6.1015]
[1729520525541,6.2002,163.93,163.89,6.1015]
[1729520526345,23.776884,163.92,163.89,6.1015]
[1729520526542,6.1991,163.96,163.92,6.1003]
[1729520526743,12.6413,163.98,163.94,6.0997]
[1729520526942,30.0,163.95,163.93,15.2501]
[1729520527249,30.0,163.95,163.89,6.4152]
[1729520527250,36.0994,163.95,163.91,6.1008]
[1729520527924,0.1,163.94,163.9,15.2528]
[1729520528234,23.876884,163.94,163.9,6.1011]
[1729520528434,23.776884,163.94,163.9,6.1011]
[1729520528750,23.776884,163.94,163.93,6.1001]
[1729520528938,53.776884,163.94,163.92,21.3516]
[1729520529145,53.776884,163.94,163.89,15.2536]
[1729520529331,53.776884,163.94,163.91,6.1008]
[1729520529732,23.876884,163.95,163.91,6.1008]
[1729520530043,23.776884,163.94,163.91,6.1008]
[1729520531744,23.876884,163.94,163.85,6.4152]
[1729520531948,0.1,163.93,163.85,6.4152]
[1729520532152,23.776884,163.94,163.85,6.4152]
[1729520532442,23.876884,163.95,163.91,6.1006]
[1729520532828,23.776884,163.95,163.91,6.1006]
[1729520533149,23.876884,163.95,163.91,6.1006]
[1729520533329,23.776884,163.95,163.91,6.1006]
[1729520533757,23.776884,163.94,163.91,6.1006]
[1729520534725,0.1,163.98,163.85,6.4152]
[1729520534926,6.0983,163.98,163.93,6.0999]
[1729520535326,0.1,164.0,163.87,0.1]
[1729520535531,0.1,163.98,163.94,6.0995]
[1729520535840,0.1,163.98,163.87,0.1]
[1729520535841,0.1,164.0,163.87,0.1]
[1729520536156,6.0963,164.04,163.93,6.3664]
[1729520536459,6.0963,164.04,163.94,20.0]
[1729520537246,6.0968,164.02,163.94,20.0]
[1729520537543,23.776884,164.02,163.98,6.0982]
[1729520538252,23.776884,164.02,163.99,6.0979]
[1729520538646,23.776884,164.02,164.0,6.0974]
[1729520538833,23.776884,164.02,163.94,20.0]
[1729520539042,23.776884,164.02,163.99,6.0978]
[1729520539339,23.776884,164.03,163.99,6.0978]
[1729520539546,23.776884,164.02,163.99,6.0978]
[1729520539935,21.989,164.05,164.0,6.0974]
[1729520540133,21.989,164.05,163.94,20.0]
[1729520540134,6.34918052,164.06,164.01,6.0968]
[1729520540650,6.34918052,164.06,164.02,6.0967]
[1729520541345,12.44448052,164.06,164.02,6.0967]
[1729520541653,0.1,164.05,163.99,6.0976]
[1729520541852,0.1,164.04,163.98,15.2456]
[1729520542054,6.0964,164.03,163.98,21.3438]
[1729520542353,23.776884,164.02,163.98,21.3438]
[1729520542741,23.876884,164.02,163.95,21.3471]
[1729520542936,6.0977,164.0,163.95,15.2481]
[1729520543159,6.0977,164.0,163.96,6.0989]
[1729520544661,6.1972,164.01,163.96,6.0989]
[1729520544862,23.776884,164.0,163.96,6.0989]
[1729520545935,23.876884,164.0,163.95,15.2481]
[1729520546139,23.776884,163.96,163.91,15.2516]
[1729520546371,29.875984,163.96,163.92,6.1002]
[1729520546658,23.776884,163.96,163.92,6.1002]
[1729520549344,6.1975,164.0,163.95,6.0993]
[1729520549556,6.1979,163.99,163.95,6.0993]
[1729520549751,6.0979,163.99,163.95,6.0993]
[1729520549962,6.1979,163.99,163.95,6.0993]
[1729520550242,6.0979,163.99,163.94,6.0997]
[1729520550459,23.776884,163.98,163.94,6.0997]
[1729520550967,23.776884,163.98,163.95,6.0994]
[1729520551973,6.0961,164.04,163.99,6.0976]
[1729520552539,0.1,164.05,163.92,0.1]
[1729520552745,12.44347901,164.07,164.03,6.0963]
[1729520552961,0.1,164.07,164.03,6.0962]
[1729520553746,0.1,164.08,163.99,6.3674]
[1729520554056,6.1946,164.08,164.03,6.0964]
[1729520554264,0.1,164.11,164.0,20.0]
[1729520554485,6.0938,164.11,164.02,20.0]
[1729520554649,6.0931,164.12,164.07,6.0947]
[1729520554976,0.1,164.14,164.11,6.0932]
[1729520555270,0.6051128,164.16,164.12,6.0928]
[1729520555463,0.6051128,164.16,164.11,6.0934]
[1729520555863,0.1,164.15,164.11,6.0934]
[1729520556063,30.1,164.15,164.11,6.0934]
[1729520556252,23.776884,164.14,164.11,6.0934]
[1729520556652,23.776884,164.14,164.09,15.2346]
[1729520556866,23.776884,164.14,164.1,6.0937]
[1729520557260,23.776884,164.14,164.11,6.0932]
[1729520557463,23.776884,164.14,164.04,20.1]
[1729520557672,23.776884,164.14,164.1,15.2338]
[1729520557867,23.776884,164.14,164.11,6.0934]
[1729520558181,23.776884,164.14,164.11,6.0932]
[1729520558353,30.0,164.15,164.11,6.0932]
[1729520558555,30.0,164.15,164.12,6.093]
[1729520558873,23.776884,164.14,164.11,15.2335]
[1729520559277,23.876884,164.14,164.04,20.0]
[1729520559454,29.969184,164.14,164.09,6.0941]
[1729520560151,23.876884,164.14,164.1,6.0938]
[1729520561470,23.876884,164.14,164.1,6.0936]
[1729520561669,23.876884,164.14,164.09,6.0941]
[1729520562679,29.969284,164.14,164.09,6.0941]
[1729520562982,23.876884,164.14,164.1,6.0935]
[1729520563177,23.876884,164.14,164.1,15.2344]
[1729520563481,23.776884,164.14,164.11,6.0933]
[1729520563778,0.1,164.14,164.11,6.0933]
[1729520564567,0.1,164.14,164.1,21.3281]
[1729520564774,23.776884,164.15,164.08,6.0945]
[1729520564976,0.6051128,164.16,164.08,20.0]
[1729520565169,0.6051128,164.16,164.15,6.0919]
[1729520566571,0.6051128,164.16,164.14,21.3227]
[1729520566771,0.6051128,164.16,164.08,20.0]
[1729520566976,0.6051128,164.16,164.13,6.0926]
[1729520567157,0.7051128,164.16,164.12,21.3256]
[1729520568170,23.876884,164.15,164.12,15.2326]
[1729520569186,23.876884,164.15,164.12,21.3253]
[1729520570267,23.876884,164.15,164.12,15.2326]
[1729520573359,6.1924,164.14,164.08,6.0942]
[1729520573562,6.1929,164.13,164.08,21.3297]
[1729520574163,6.1929,164.13,164.08,15.2355]
[1729520574471,0.1,164.13,164.09,6.094]
[1729520574676,23.876884,164.13,164.09,6.094]
[1729520577588,6.1931,164.12,164.08,15.2355]
[1729520577797,6.1928,164.13,164.08,21.3299]
[1729520578095,0.1,164.15,164.13,6.0926]
[1729520578382,23.876884,164.15,164.13,6.0926]
[1729520578884,23.776884,164.15,164.13,6.0926]
[1729520579093,0.6051128,164.16,164.13,6.0926]
[1729520579388,0.6051128,164.16,164.06,0.1]
[1729520579591,0.6051128,164.16,164.08,20.0]
[1729520579783,0.6051128,164.16,164.07,0.1]
[1729520579969,0.6051128,164.16,164.14,6.0922]
[1729520580169,0.7051128,164.16,164.14,6.0922]
[1729520580394,0.7051128,164.16,164.13,6.0926]
[1729520580596,0.7051128,164.16,164.07,0.1]
[1729520580763,0.7051128,164.16,164.13,6.0925]
[1729520580969,0.1,164.14,164.04,20.1]
[1729520581189,0.1,164.14,164.11,6.0931]
[1729520581375,23.776884,164.15,164.11,6.0931]
[1729520581576,0.1,164.14,164.11,6.0931]
[1729520581799,23.776884,164.15,164.11,6.0931]
[1729520581800,23.876884,164.15,164.11,6.0931]
[1729520581969,0.1,164.13,164.04,20.0]
[1729520582173,23.776884,164.12,164.08,6.0944]
[1729520582506,0.1,164.14,164.11,6.0933]
[1729520582876,0.1,164.13,164.11,6.0933]
[1729520583178,23.776884,164.13,164.1,21.3279]
[1729520583384,23.776884,164.14,164.1,21.3279]
[1729520583575,23.876884,164.14,164.1,21.3279]
[1729520583898,0.1,164.13,164.1,15.2342]
[1729520584189,6.1924,164.14,164.1,15.2342]
[1729520584389,23.776884,164.13,164.1,21.328]
[1729520584698,23.876884,164.13,164.1,21.328]
[1729520584890,23.776884,164.13,164.1,21.328]
[1729520585089,23.876884,164.13,164.1,21.328]
[1729520585288,23.876884,164.13,164.1,15.2342]
[1729520585798,23.876884,164.11,164.07,15.237]
[1729520586013,0.1,164.06,163.99,22.1375]
[1729520586173,23.876884,164.04,164.0,21.3411]
[1729520586377,23.876884,164.04,164.01,6.0971]
[1729520586792,0.1,164.04,164.01,6.0971]
[1729520586980,0.1,164.03,164.0,15.2439]
[1729520587184,0.1,164.04,164.0,5.33560909]
[1729520587583,0.1,164.03,164.0,5.33560909]
[1729520587983,0.1,164.03,163.95,22.3772]
[1729520588298,0.1,164.03,164.0,6.0975]
[1729520588592,23.876884,164.05,164.01,6.097]
[1729520588997,23.776884,164.05,164.01,6.097]
[1729520589184,23.876884,164.05,164.01,6.097]
[1729520589693,23.776884,164.05,164.01,6.097]
[1729520589884,0.1,164.04,164.01,6.097]
[1729520590294,0.1,164.02,163.95,22.2772]
[1729520590496,6.0972,164.01,163.97,6.0985]
[1729520590709,0.1,164.01,163.97,6.0985]
[1729520590878,0.1,164.01,163.96,6.0989]
[1729520590879,23.876884,164.0,163.96,6.0989]
[1729520591896,0.1,163.99,163.96,6.0989]
[1729520592197,23.876884,164.0,163.91,21.7702]
[1729520592400,0.1,163.99,163.96,6.0988]
[1729520592786,23.876884,164.0,163.96,6.0988]
[1729520593697,23.776884,164.0,163.96,6.0988]
[1729520594012,23.776884,164.02,163.99,6.0978]
[1729520594304,0.1,164.04,164.0,6.0974]
[1729520594483,6.1958,164.05,164.0,6.0974]
[1729520594675,0.1,164.04,164.0,6.0974]
[1729520595590,0.1,164.03,164.0,6.0974]
[1729520597306,0.1,164.01,163.97,6.0983]
[1729520597607,23.876884,164.0,163.93,20.0]
[1729520597810,23.776884,164.0,163.97,6.0986]
[1729520598190,23.876884,164.01,163.97,6.0986]
[1729520598395,0.1,164.0,163.97,6.0986]
[1729520598891,0.1,163.99,163.92,20.0]
[1729520599088,0.1,164.0,163.92,20.0]
[1729520599298,29.974084,164.01,163.97,6.0986]
[1729520599795,0.1,164.0,163.97,6.0986]
[1729520600105,0.1,163.99,163.96,6.0989]
[1729520600309,0.1,163.98,163.91,6.5581]
[1729520600516,0.1,163.95,163.91,6.1005]
[1729520600813,23.876884,163.97,163.87,22.2505]
[1729520600990,23.876884,163.97,163.94,6.0996]
[1729520601497,23.876884,163.97,163.87,22.2505]
[1729520601498,0.1,163.96,163.92,6.1002]
[1729520601689,23.876884,163.97,163.93,6.1]
[1729520602084,23.876884,163.97,163.88,20.0]
[1729520602085,23.776884,163.97,163.94,6.0995]
[1729520602505,23.876884,163.97,163.94,6.0995]
[1729520603009,23.776884,163.97,163.94,6.0995]
[1729520603217,23.876884,163.97,163.94,6.0995]
[1729520603709,0.1,163.97,163.94,6.0995]
[1729520604809,23.876884,163.95,163.88,20.0]
[1729520605003,23.876884,163.95,163.92,6.1003]
[1729520605587,23.876884,163.95,163.88,20.0]
[1729520605588,0.1,163.94,163.88,20.0]
[1729520605809,23.876884,163.95,163.92,6.1004]
[1729520606395,0.1,163.94,163.92,6.1004]
[1729520606987,23.876884,163.95,163.92,6.1004]
[1729520607400,23.776884,163.96,163.88,20.0]
[1729520607594,0.1,163.98,163.94,6.0995]
[1729520607797,15.6136,163.99,163.88,20.0]
[1729520608004,15.6136,163.99,163.95,6.099]
[1729520608216,0.1,164.0,163.95,6.099]
[1729520608415,0.1,163.99,163.95,6.099]
[1729520608909,0.1,163.97,163.95,6.099]
[1729520609495,23.876884,163.98,163.88,20.1]
[1729520609700,0.1,163.97,163.94,6.0995]
[1729520611307,6.35704465,164.02,163.91,6.1005]
[1729520611308,0.1,163.94,163.91,6.1005]
[1729520611513,23.876884,163.94,163.91,6.1005]
[1729520611691,6.1983,163.98,163.93,6.1001]
[1729520611897,23.876884,163.97,163.93,6.1001]
[1729520612097,0.1,163.96,163.93,6.1001]
[1729520613300,23.876884,163.97,163.94,6.0997]
[1729520613502,23.876884,163.98,163.94,6.0997]
[1729520613896,0.1,163.96,163.93,6.0997]
[1729520614103,0.1,163.97,163.93,6.0997]
[1729520614312,0.1,163.96,163.93,6.0997]
[1729520614514,0.1,163.95,163.93,6.0997]